fUSD/lending_fUSD_20250515
["ID","MTS","AMOUNT","RATE_DAILY","PERIOD"]
[361217093,1747351852201,-3425.536284,0.00011,2]
[361217095,1747351852211,-3425.536284,0.00011,2]
[361217097,1747351852220,-964.863065,0.00011,2]
[361217099,1747351852229,-151.0,0.00011,2]
[361217101,1747351852238,-151.660511,0.00011,2]
[361217118,1747351852394,-964.863065,0.00011,2]
[361217120,1747351852406,-308.656406,0.00011,2]
[361217122,1747351852415,-308.656406,0.00011,2]
[361217124,1747351852424,-151.0,0.00011,2]
[361217126,1747351852433,-308.656406,0.00011,2]
[361217128,1747351852445,-308.656406,0.00011,2]
[361217130,1747351852455,-151.0,0.00011,2]
[361217132,1747351852464,-154.92284664,0.00011,2]
[361217134,1747351852477,-151.0,0.00011,2]
[361217137,1747351852487,-200.0,0.00011,2]
[361217138,1747351852496,-250.0,0.00011,2]
[361217141,1747351852506,-200.0,0.00011,2]
[361217143,1747351852515,-250.0,0.00011,2]
[361217144,1747351852524,-9864.9522402,0.00011006,2]
[361217146,1747351852533,-98126.0926666,0.00011006,2]
[361217148,1747351852542,-964.863065,0.00011006,2]
[361217150,1747351852551,-964.863065,0.00011006,2]
[361217152,1747351852561,-351.373581,0.00011014,2]
[361217154,1747351852570,-351.373581,0.00011014,2]
[361217156,1747351852579,-151.244971,0.00011014,2]
[361217158,1747351852588,-151.436855,0.00011014,2]
[361217160,1747351852598,-151.436855,0.00011014,2]
[361217163,1747351852607,-151.0,0.00011014,2]
[361217165,1747351852617,-161.491075,0.00011014,2]
[361217166,1747351852626,-255.38302,0.00011017,2]
[361217168,1747351852635,-255.38302,0.00011017,2]
[361217170,1747351852645,-500.0,0.00011041,2]
[361217171,1747351852654,-760.37934454,0.00011099,2]
[361217173,1747351852663,-923.31,0.000111,2]
[361217175,1747351852673,-151.0,0.000111,2]
[361217176,1747351852682,-151.0,0.000111,2]
[361217177,1747351852691,-151.0,0.000111,2]
[361217179,1747351852700,-179.74,0.000111,2]
[361217180,1747351852710,-151.0,0.000111,2]
[361217182,1747351852719,-151.0,0.000111,2]
[361217183,1747351852728,-200.0,0.00011109,2]
[361217185,1747351852737,-346.47580632,0.00011122,2]
[361217186,1747351852746,-760.37934448,0.00011122,2]
[361217188,1747351852756,-21302.73770005,0.0001115,2]
[361217190,1747351852765,-151.0,0.0001115,2]
[361217191,1747351852775,-171.197024,0.0001115,2]
[361217193,1747351852784,-151.0,0.000112,2]
[361217195,1747351852794,-151.0,0.000112,2]
[361217196,1747351852804,-151.0,0.000112,2]
[361217198,1747351852813,-151.0,0.000112,2]
[361217199,1747351852822,-151.661558,0.000112,2]
[361217201,1747351852831,-357.19292,0.000112,2]
[361217202,1747351852841,-357.19292,0.000112,2]
[361217204,1747351852851,-875.30003,0.000112,2]
[361217206,1747351852860,-875.30003,0.000112,2]
[361217207,1747351852869,-151.0,0.000112,2]
[361217209,1747351852879,-151.0,0.000112,2]
[361217210,1747351852888,-290.080223,0.000112,2]
[361217212,1747351852897,-290.080223,0.000112,2]
[361217213,1747351852906,-151.0,0.000112,2]
[361217215,1747351852916,-202.562975,0.000112,2]
[361217217,1747351852926,-151.0,0.000112,2]
[361217219,1747351852938,-151.0,0.000112,2]
[361217220,1747351852947,-195.22175,0.000112,2]
[361217222,1747351852956,-195.22175,0.000112,2]
[361217224,1747351852966,-151.0,0.000112,2]
[361217225,1747351852975,-151.0,0.000112,2]
[361217227,1747351852984,-151.0,0.000112,2]
[361217229,1747351852995,-286.81848,0.000112,2]
[361217230,1747351853004,-151.0,0.000112,2]
[361217232,1747351853014,-220.77918076,0.000112,2]
[361217233,1747351853023,-194.124862,0.000112,2]
[361217235,1747351853033,-194.124862,0.000112,2]
[361217237,1747351853042,-151.0,0.000112,2]
[361217238,1747351853053,-214.108318,0.000112,2]
[361217240,1747351853062,-219.687645,0.000112,2]
[361217242,1747351853071,-214.108318,0.000112,2]
[361217243,1747351853080,-219.687645,0.000112,2]
[361217245,1747351853090,-234.851521,0.000112,2]
[361217247,1747351853099,-234.851521,0.000112,2]
[361217248,1747351853108,-151.0,0.000112,2]
[361217250,1747351853117,-6183.157413,0.000112,2]
[361217252,1747351853126,-151.0,0.000112,2]
[361217253,1747351853136,-6183.157413,0.000112,2]
[361217255,1747351853146,-151.0,0.000112,2]
[361217257,1747351853155,-151.0,0.000112,2]
[361217258,1747351853164,-151.0,0.000112,2]
[361217260,1747351853173,-151.0,0.000112,2]
[361217262,1747351853182,-267.913641,0.000112,2]
[361217263,1747351853191,-151.0,0.000112,2]
[361217265,1747351853200,-151.0,0.000112,2]
[361217266,1747351853209,-151.0,0.000112,2]
[361217268,1747351853218,-151.0,0.000112,2]
[361217270,1747351853227,-151.0,0.000112,2]
[361217271,1747351853236,-195.393995,0.000112,2]
[361217273,1747351853246,-151.0,0.000112,2]
[361217275,1747351853255,-351.373581,0.000112,2]
[361217276,1747351853264,-351.373581,0.000112,2]
[361217278,1747351853274,-151.0,0.000112,2]
[361217280,1747351853283,-255.38302,0.000112,2]
[361217281,1747351853293,-151.0,0.000112,2]
[361217284,1747351853314,-255.38302,0.000112,2]
[361217285,1747351853323,-153.196447,0.000112,2]
[361217287,1747351853332,-153.196447,0.000112,2]
[361217289,1747351853342,-151.436855,0.000112,2]
[361217290,1747351853351,-151.436855,0.000112,2]
[361217292,1747351853361,-151.0,0.000112,2]
[361217294,1747351853370,-173.767944,0.000112,2]
[361217295,1747351853380,-151.0,0.000112,2]
[361217297,1747351853389,-151.0,0.000112,2]
[361217299,1747351853401,-151.0,0.000112,2]
[361217300,1747351853410,-151.0,0.000112,2]
[361217302,1747351853420,-151.0,0.000112,2]
[361217304,1747351853429,-151.0,0.000112,2]
[361217305,1747351853439,-151.0,0.000112,2]
[361217307,1747351853448,-151.0,0.000112,2]
[361217309,1747351853458,-188.989152,0.000112,2]
[361217311,1747351853467,-188.989152,0.000112,2]
[361217313,1747351853479,-151.0,0.000112,2]
[361217315,1747351853490,-213.784462,0.000112,2]
[361217317,1747351853499,-151.0,0.000112,2]
[361217318,1747351853508,-151.0,0.000112,2]
[361217319,1747351853517,-151.0,0.000112,2]
[361217320,1747351853527,-196.576946,0.000112,2]
[361217321,1747351853537,-196.576946,0.000112,2]
[361217322,1747351853546,-347.177907,0.000112,2]
[361217323,1747351853556,-347.177907,0.000112,2]
[361217324,1747351853566,-323.70981,0.000112,2]
[361217325,1747351853575,-323.70981,0.000112,2]
[361217326,1747351853584,-198.432882,0.000112,2]
[361217327,1747351853594,-198.432882,0.000112,2]
[361217328,1747351853603,-151.0,0.000112,2]
[361217329,1747351853612,-151.0,0.000112,2]
[361217330,1747351853621,-362.45256,0.000112,2]
[361217331,1747351853631,-151.0,0.000112,2]
[361217332,1747351853640,-362.45256,0.000112,2]
[361217334,1747351853649,-770.355079,0.000112,2]
[361217335,1747351853659,-770.355079,0.000112,2]
[361217337,1747351853669,-151.0,0.000112,2]
[361217339,1747351853679,-151.0,0.000112,2]
[361217341,1747351853688,-151.0,0.000112,2]
[361217343,1747351853697,-151.0,0.000112,2]
[361217345,1747351853707,-488.718841,0.000112,2]
[361217347,1747351853717,-151.0,0.000112,2]
[361217349,1747351853726,-488.718841,0.000112,2]
[361217351,1747351853735,-506.692783,0.000112,2]
[361217353,1747351853745,-506.692783,0.000112,2]
[361217355,1747351853755,-151.0,0.000112,2]
[361217357,1747351853764,-151.0,0.000112,2]
[361217359,1747351853774,-2223.501251,0.000112,2]
[361217361,1747351853787,-2223.501251,0.000112,2]
[361217363,1747351853797,-349.584912,0.000112,2]
[361217366,1747351853807,-349.584912,0.000112,2]
[361217368,1747351853819,-151.0,0.000112,2]
[361217369,1747351853828,-3425.536284,0.000112,2]
[361217371,1747351853839,-3425.536284,0.000112,2]
[361217373,1747351853849,-964.863065,0.000112,2]
[361217375,1747351853859,-964.863065,0.000112,2]
[361217377,1747351853869,-308.656406,0.000112,2]
[361217379,1747351853879,-151.0,0.000112,2]
[361217381,1747351853888,-308.656406,0.000112,2]
[361217383,1747351853897,-151.0,0.000112,2]
[361217385,1747351853907,-151.0,0.0001121,2]
[361217387,1747351853916,-151.0,0.0001121,2]
[361217389,1747351853925,-151.0,0.0001121,2]
[361217391,1747351853935,-151.0,0.0001121,2]
[361217393,1747351853944,-151.0,0.0001121,2]
[361217395,1747351853954,-151.0,0.0001121,2]
[361217397,1747351853964,-151.0,0.0001121,2]
[361217400,1747351853974,-151.0,0.0001121,2]
[361217401,1747351853984,-200.0,0.0001122,2]
[361217404,1747351853993,-3450.0,0.00011233,2]
[361217405,1747351854002,-506.692783,0.00011233,2]
[361217407,1747351854012,-506.692783,0.00011233,2]
[361217410,1747351854022,-151.0,0.00011233,2]
[361217411,1747351854032,-349.584912,0.00011233,2]
[361217414,1747351854041,-349.584912,0.00011233,2]
[361217416,1747351854051,-308.656406,0.00011233,2]
[361217418,1747351854061,-308.656406,0.00011233,2]
[361217420,1747351854070,-277.77665053,0.00011233,2]
[361217422,1747351854080,-215.158675,0.00011281,2]
[361217424,1747351854090,-151.0,0.00011281,2]
[361217426,1747351854098,-357.19292,0.00011281,2]
[361217428,1747351854107,-357.19292,0.00011281,2]
[361217429,1747351854117,-875.30003,0.00011281,2]
[361217431,1747351854126,-875.30003,0.00011281,2]
[361217434,1747351854137,-151.0,0.00011281,2]
[361217435,1747351854147,-151.0,0.00011281,2]
[361217438,1747351854156,-290.080223,0.00011281,2]
[361217440,1747351854166,-290.080223,0.00011281,2]
[361217441,1747351854176,-151.0,0.00011281,2]
[361217443,1747351854185,-151.0,0.00011281,2]
[361217445,1747351854194,-151.0,0.00011281,2]
[361217447,1747351854203,-195.22175,0.00011281,2]
[361217449,1747351854213,-195.22175,0.00011281,2]
[361217451,1747351854222,-151.0,0.00011281,2]
[361217453,1747351854231,-151.0,0.00011281,2]
[361217455,1747351854240,-151.0,0.00011281,2]
[361217457,1747351854249,-219.687645,0.00011281,2]
[361217459,1747351854259,-219.687645,0.00011281,2]
[361217461,1747351854268,-443.869001,0.00011281,2]
[361217463,1747351854278,-234.851521,0.00011281,2]
[361217465,1747351854287,-234.851521,0.00011281,2]
[361217467,1747351854297,-151.0,0.00011281,2]
[361217469,1747351854306,-272.956519,0.00011281,2]
[361217484,1747351854441,-151.0,0.00011281,2]
[361217486,1747351854450,-151.0,0.00011281,2]
[361217488,1747351854459,-151.0,0.00011281,2]
[361217490,1747351854468,-188.989152,0.00011281,2]
[361217492,1747351854480,-188.989152,0.00011281,2]
[361217494,1747351854490,-151.0,0.00011281,2]
[361217496,1747351854500,-151.0,0.00011281,2]
[361217498,1747351854509,-196.576946,0.00011281,2]
[361217500,1747351854518,-196.576946,0.00011281,2]
[361217502,1747351854528,-347.177907,0.00011281,2]
[361217504,1747351854537,-347.177907,0.00011281,2]
[361217506,1747351854546,-323.70981,0.00011281,2]
[361217508,1747351854555,-323.70981,0.00011281,2]
[361217510,1747351854564,-198.432882,0.00011281,2]
[361217511,1747351854574,-198.432882,0.00011281,2]
[361217513,1747351854583,-151.0,0.00011281,2]
[361217515,1747351854592,-151.0,0.00011281,2]
[361217517,1747351854601,-362.45256,0.00011281,2]
[361217519,1747351854611,-151.0,0.00011281,2]
[361217521,1747351854623,-362.45256,0.00011281,2]
[361217524,1747351854634,-770.355079,0.00011281,2]
[361217525,1747351854644,-770.355079,0.00011281,2]
[361217527,1747351854654,-151.0,0.00011281,2]
[361217529,1747351854663,-227.442896,0.00011281,2]
[361217531,1747351854675,-488.718841,0.00011281,2]
[361217534,1747351854685,-488.718841,0.00011281,2]
[361217536,1747351854695,-2223.501251,0.00011281,2]
[361217537,1747351854704,-2223.501251,0.00011281,2]
[361217540,1747351854714,-151.0,0.00011281,2]
[361217541,1747351854723,-3425.536284,0.00011281,2]
[361217543,1747351854733,-3425.536284,0.00011281,2]
[361217545,1747351854743,-964.863065,0.00011281,2]
[361217548,1747351854752,-964.863065,0.00011281,2]
[361217550,1747351854762,-151.0,0.000113,2]
[361217551,1747351854772,-804.54436954,0.00011328,2]
[361217554,1747351854782,-151.0,0.00011344,2]
[361217555,1747351854791,-153.196447,0.00011344,2]
[361217557,1747351854800,-153.196447,0.00011344,2]
[361217560,1747351854810,-173.767944,0.00011344,2]
[361217561,1747351854820,-151.0,0.00011344,2]
[361217563,1747351854829,-151.0,0.00011344,2]
[361217566,1747351854839,-346.47580632,0.00011344,2]
[361217568,1747351854849,-760.37934448,0.00011344,2]
[361217570,1747351854859,-164.81,0.00011353,2]
[361217572,1747351854869,-223.35,0.00011353,2]
[361217574,1747351854879,-151.0,0.00011392,2]
[361217576,1747351854888,-151.0,0.00011392,2]
[361217577,1747351854899,-151.0,0.00011392,2]
[361217580,1747351854912,-151.0,0.00011392,2]
[361217581,1747351854924,-151.0,0.00011392,2]
[361217583,1747351854934,-457.61,0.000114,2]
[361217585,1747351854944,-2064.1874785,0.00011405,2]
[361217587,1747351854954,-2064.18747851,0.00011405,2]
[361217589,1747351854964,-500.0,0.00011452,2]
[361217591,1747351854975,-498.0,0.00011452,2]
[361217593,1747351854985,-321.12100925,0.00011467,2]
[361217595,1747351854994,-151.0,0.00011486,2]
[361217597,1747351855004,-151.0,0.00011486,2]
[361217599,1747351855015,-6183.157413,0.00011486,2]
[361217601,1747351855024,-6183.157413,0.00011486,2]
[361217603,1747351855035,-151.0,0.00011486,2]
[361217606,1747351855045,-151.0,0.00011486,2]
[361217607,1747351855054,-351.373581,0.00011486,2]
[361217609,1747351855064,-351.373581,0.00011486,2]
[361217611,1747351855072,-255.38302,0.00011486,2]
[361217613,1747351855082,-151.0,0.00011486,2]
[361217615,1747351855091,-255.38302,0.00011486,2]
[361217617,1747351855100,-151.436855,0.00011486,2]
[361217619,1747351855110,-151.436855,0.00011486,2]
[361217621,1747351855119,-151.0,0.00011486,2]
[361217623,1747351855128,-151.0,0.00011486,2]
[361217625,1747351855138,-151.0,0.00011486,2]
[361217628,1747351855147,-151.0,0.00011486,2]
[361217629,1747351855157,-158.057291,0.00011486,2]
[361217631,1747351855167,-151.0,0.00011486,2]
[361217633,1747351855176,-151.0,0.00011486,2]
[361217636,1747351855186,-506.692783,0.00011486,2]
[361217637,1747351855195,-506.692783,0.00011486,2]
[361217639,1747351855205,-151.0,0.00011486,2]
[361217642,1747351855214,-349.584912,0.00011486,2]
[361217644,1747351855224,-349.584912,0.00011486,2]
[361217645,1747351855234,-308.656406,0.00011486,2]
[361217648,1747351855243,-308.656406,0.00011486,2]
[361217649,1747351855253,-162.69437,0.0001149,2]
[361217652,1747351855262,-162.69437,0.0001149,2]
[361217654,1747351855272,-173.4,0.0001149,2]
[361217655,1747351855283,-251.066305,0.000115,2]
[361217658,1747351855293,-251.066305,0.000115,2]
[361217659,1747351855302,-1904.562352,0.000115,2]
[361217662,1747351855312,-1904.562352,0.000115,2]
[361217664,1747351855321,-151.0,0.000115,2]
[361217666,1747351855330,-257.482806,0.000115,2]
[361217667,1747351855340,-257.482806,0.000115,2]
[361217670,1747351855349,-151.0,0.000115,2]
[361217671,1747351855358,-247.185851,0.000115,2]
[361217674,1747351855367,-151.0,0.000115,2]
[361217675,1747351855376,-151.0,0.000115,2]
[361217677,1747351855386,-214.108318,0.000115,2]
[361217680,1747351855399,-214.108318,0.000115,2]
[361217681,1747351855408,-151.0,0.000115,2]
[361217683,1747351855418,-151.0,0.000115,2]
[361217686,1747351855427,-151.0,0.000115,2]
[361217687,1747351855438,-151.0,0.000115,2]
[361217690,1747351855447,-488.718841,0.000115,2]
[361217691,1747351855457,-488.718841,0.000115,2]
[361217693,1747351855466,-2223.501251,0.000115,2]
[361217695,1747351855475,-2223.501251,0.000115,2]
[361217697,1747351855485,-151.0,0.000115,2]
[361217700,1747351855494,-3425.536284,0.000115,2]
[361217701,1747351855504,-3425.536284,0.000115,2]
[361217703,1747351855513,-964.863065,0.000115,2]
[361217705,1747351855523,-964.863065,0.000115,2]
[361217707,1747351855534,-500.0,0.00011507,2]
[361217709,1747351855543,-157.64460667,0.00011507,2]
[361217711,1747351855552,-162.8609911,0.00011507,2]
[361217712,1747351855562,-151.0,0.00011521,2]
[361217713,1747351855571,-162.223215,0.00011521,2]
[361217714,1747351855581,-188.989152,0.00011521,2]
[361217715,1747351855590,-188.989152,0.00011521,2]
[361217716,1747351855599,-151.0,0.00011521,2]
[361217717,1747351855608,-196.576946,0.00011521,2]
[361217718,1747351855617,-347.177907,0.00011521,2]
[361217719,1747351855627,-196.576946,0.00011521,2]
[361217720,1747351855636,-347.177907,0.00011521,2]
[361217722,1747351855646,-323.70981,0.00011521,2]
[361217723,1747351855655,-323.70981,0.00011521,2]
[361217725,1747351855664,-198.432882,0.00011521,2]
[361217727,1747351855674,-198.432882,0.00011521,2]
[361217729,1747351855684,-151.0,0.00011521,2]
[361217731,1747351855693,-151.0,0.00011521,2]
[361217733,1747351855703,-362.45256,0.00011521,2]
[361217735,1747351855712,-362.45256,0.00011521,2]
[361217737,1747351855722,-770.355079,0.00011521,2]
[361217739,1747351855732,-770.355079,0.00011521,2]
[361217741,1747351855741,-151.0,0.00011521,2]
[361217743,1747351855751,-500.0,0.00011534,2]
[361217745,1747351855760,-151.0,0.00011541,2]
[361217747,1747351855769,-207.4,0.00011541,2]
[361217749,1747351855779,-693.3919763,0.00011541,2]
[361217751,1747351855789,-194.124862,0.00011541,2]
[361217753,1747351855799,-194.124862,0.00011541,2]
[361217755,1747351855808,-246.27064749,0.00011562,2]
[361217757,1747351855818,-346.47580632,0.00011567,2]
[361217759,1747351855828,-277.77665053,0.00011567,2]
[361217761,1747351855837,-760.37934448,0.00011567,2]
[361217763,1747351855847,-151.0,0.00011567,2]
[361217765,1747351855856,-1171.04,0.00011746,2]
[361217767,1747351855865,-905.44,0.00011746,2]
[361217769,1747351855875,-150.0,0.00011746,2]
[361217771,1747351855885,-168.32,0.00011746,2]
[361217773,1747351855895,-151.0,0.0001175,2]
[361217775,1747351855904,-151.0,0.00011762,2]
[361217777,1747351855914,-151.0,0.00011762,2]
[361217779,1747351855923,-151.0,0.00011762,2]
[361217781,1747351855933,-151.0,0.00011762,2]
[361217783,1747351855942,-151.0,0.00011762,2]
[361217785,1747351855952,-151.0,0.00011763,2]
[361217787,1747351855961,-151.0,0.00011773,2]
[361217789,1747351855970,-151.0,0.00011776,2]
[361217791,1747351855979,-151.0,0.00011781,2]
[361217793,1747351855989,-151.0,0.00011785,2]
[361217795,1747351855999,-346.47580632,0.00011789,2]
[361217797,1747351856009,-760.37934448,0.00011789,2]
[361217799,1747351856019,-151.0,0.00011818,2]
[361217801,1747351856029,-151.0,0.00011818,2]
[361217803,1747351856039,-151.0,0.00011818,2]
[361217805,1747351856048,-151.0,0.00011831,2]
[361217807,1747351856057,-818.87,0.000119,2]
[361217809,1747351856066,-151.0,0.000119,2]
[361217811,1747351856076,-151.0,0.000119,2]
[361217813,1747351856085,-151.0,0.000119,2]
[361217815,1747351856094,-182.395184,0.000119,2]
[361217817,1747351856104,-153.196447,0.000119,2]
[361217819,1747351856113,-153.196447,0.000119,2]
[361217821,1747351856122,-173.767944,0.000119,2]
[361217823,1747351856131,-151.0,0.000119,2]
[361217825,1747351856141,-151.0,0.000119,2]
[361217827,1747351856151,-151.0,0.000119,2]
[361217829,1747351856160,-151.0,0.000119,2]
[361217831,1747351856169,-277.77665053,0.000119,2]
[361217833,1747351856179,-4345.69041252,0.000119,2]
[361217835,1747351856188,-151.0,0.00011967,2]
[361217837,1747351856197,-1000.0,0.00011968,2]
[361217851,1747351856324,-420.0,0.00011977,2]
[361217853,1747351856333,-420.0,0.00011978,2]
[361217855,1747351856343,-250.0,0.00011982,2]
[361217857,1747351856353,-1680.0,0.00011989,2]
[361217859,1747351856363,-151.0,0.00012,2]
[361217862,1747351856373,-202.076674,0.00012,2]
[361217864,1747351856383,-151.0,0.00012,2]
[361217866,1747351856392,-154.064657,0.00012,2]
[361217868,1747351856405,-506.692783,0.00012,2]
[361217869,1747351856414,-506.692783,0.00012,2]
[361217872,1747351856424,-500.0,0.00012,2]
[361217874,1747351856433,-349.584912,0.00012,2]
[361217875,1747351856444,-349.584912,0.00012,2]
[361217877,1747351856453,-308.656406,0.00012,2]
[361217879,1747351856462,-308.656406,0.00012,2]
[361217881,1747351856472,-346.47580632,0.00012011,2]
[361217883,1747351856482,-760.37934448,0.00012011,2]
[361217886,1747351856492,-351.373581,0.00012022,2]
[361217888,1747351856501,-351.373581,0.00012022,2]
[361217889,1747351856511,-255.38302,0.00012022,2]
[361217891,1747351856520,-255.38302,0.00012022,2]
[361217893,1747351856531,-151.436855,0.00012022,2]
[361217895,1747351856541,-151.436855,0.00012022,2]
[361217897,1747351856550,-151.0,0.00012022,2]
[361217900,1747351856559,-321.12100925,0.00012033,2]
[361217902,1747351856569,-255.0,0.00012044,2]
[361217903,1747351856578,-150.0,0.00012073,2]
[361217905,1747351856587,-150.0,0.00012079,2]
[361217908,1747351856596,-151.0,0.00012087,2]
[361217910,1747351856606,-162.69437,0.00012087,2]
[361217912,1747351856615,-162.69437,0.00012087,2]
[361217914,1747351856624,-151.0,0.00012087,2]
[361217916,1747351856634,-151.0,0.00012087,2]
[361217918,1747351856643,-257.482806,0.00012087,2]
[361217919,1747351856652,-257.482806,0.00012087,2]
[361217921,1747351856662,-875.30003,0.00012087,2]
[361217923,1747351856671,-875.30003,0.00012087,2]
[361217925,1747351856681,-151.0,0.00012087,2]
[361217927,1747351856690,-151.0,0.00012087,2]
[361217929,1747351856699,-151.0,0.00012087,2]
[361217931,1747351856708,-151.0,0.00012087,2]
[361217933,1747351856717,-151.0,0.00012087,2]
[361217935,1747351856727,-151.0,0.00012087,2]
[361217937,1747351856736,-195.22175,0.00012087,2]
[361217939,1747351856745,-195.22175,0.00012087,2]
[361217941,1747351856755,-151.0,0.00012087,2]
[361217943,1747351856764,-151.0,0.00012087,2]
[361217945,1747351856773,-151.0,0.00012087,2]
[361217947,1747351856784,-219.687645,0.00012087,2]
[361217949,1747351856793,-219.687645,0.00012087,2]
[361217951,1747351856803,-443.869001,0.00012087,2]
[361217953,1747351856813,-234.851521,0.00012087,2]
[361217955,1747351856822,-234.851521,0.00012087,2]
[361217957,1747351856831,-151.0,0.00012087,2]
[361217959,1747351856840,-151.0,0.00012087,2]
[361217960,1747351856850,-151.0,0.00012087,2]
[361217962,1747351856859,-188.989152,0.00012087,2]
[361217964,1747351856869,-188.989152,0.00012087,2]
[361217966,1747351856878,-151.0,0.00012087,2]
[361217968,1747351856888,-240.465032,0.00012087,2]
[361217970,1747351856897,-196.576946,0.00012087,2]
[361217972,1747351856906,-196.576946,0.00012087,2]
[361217974,1747351856916,-347.177907,0.00012087,2]
[361217975,1747351856925,-347.177907,0.00012087,2]
[361217977,1747351856934,-323.70981,0.00012087,2]
[361217979,1747351856944,-323.70981,0.00012087,2]
[361217981,1747351856953,-198.432882,0.00012087,2]
[361217983,1747351856962,-198.432882,0.00012087,2]
[361217985,1747351856971,-151.0,0.00012087,2]
[361217987,1747351856982,-362.45256,0.00012087,2]
[361217989,1747351856992,-362.45256,0.00012087,2]
[361217991,1747351857002,-151.0,0.00012087,2]
[361217993,1747351857011,-770.355079,0.00012087,2]
[361217995,1747351857020,-770.355079,0.00012087,2]
[361217997,1747351857029,-151.0,0.00012087,2]
[361217998,1747351857039,-488.718841,0.00012087,2]
[361218000,1747351857048,-488.718841,0.00012087,2]
[361218002,1747351857057,-2223.501251,0.00012087,2]
[361218004,1747351857067,-2223.501251,0.00012087,2]
[361218006,1747351857076,-151.0,0.00012087,2]
[361218008,1747351857086,-3425.536284,0.00012087,2]
[361218010,1747351857096,-3425.536284,0.00012087,2]
[361218012,1747351857106,-964.863065,0.00012087,2]
[361218014,1747351857115,-964.863065,0.00012087,2]
[361218017,1747351857131,-151.0,0.00012089,2]
[361218019,1747351857148,-215.0738,0.00012089,2]
[361218022,1747351857166,-719.04747942,0.00012089,2]
[361218026,1747351857187,-150.0,0.00012131,2]
[361218028,1747351857201,-151.0,0.00012133,2]
[361218031,1747351857220,-197.96,0.00012133,2]
[361218034,1747351857238,-506.692783,0.00012133,2]
[361218037,1747351857259,-506.692783,0.00012133,2]
[361218040,1747351857278,-159.159755,0.00012133,2]
[361218043,1747351857295,-151.0,0.00012133,2]
[361218045,1747351857312,-349.584912,0.00012133,2]
[361218048,1747351857327,-349.584912,0.00012133,2]
[361218051,1747351857345,-308.656406,0.00012133,2]
[361218053,1747351857358,-151.0,0.00012133,2]
[361218056,1747351857374,-308.656406,0.00012133,2]
[361218058,1747351857389,-151.0,0.00012133,2]
[361218060,1747351857406,-1275.894,0.00012133,2]
[361218061,1747351857420,-555.617,0.00012133,2]
[361218062,1747351857435,-584.0,0.00012133,2]
[361218063,1747351857453,-919.0,0.00012133,2]
[361218064,1747351857466,-1464.378,0.00012133,2]
[361218065,1747351857483,-1265.566,0.00012133,2]
[361218066,1747351857497,-5941.0,0.00012133,2]
[361218067,1747351857513,-1029.737,0.00012133,2]
[361218068,1747351857529,-4035.0,0.00012133,2]
[361218070,1747351857545,-1306.0,0.00012133,2]
[361218073,1747351857560,-277.949,0.00012133,2]
[361218076,1747351857575,-6824.0,0.00012133,2]